[Event "Titled Tuesday Blitz January 10 Early 2023"]
[White "Vidit, Santosh Gujrathi"]
[Black "Biastoch, Bennet"]
[WhiteFideId "5029465"]
[BlackFideId "12939889"]
[WhiteElo "2731"]
[BlackElo "2257"]
[Result "1-0"]
[Round "01"]
[TimeControl "180+2"]
[Date "2023.01.10"]
[WhiteClock "0:00:56"]
[BlackClock "0:00:03"]

1. e4 {[%clk 0:02:57]}  c5 {[%clk 0:02:02]} 2. Nf3 {[%clk 0:02:52]}  d6 {[%clk 0:02:02]} 3. d4 {[%clk 0:02:51]}  cxd4 {[%clk 0:02:03]} 4. Qxd4 {[%clk 0:02:49]}  Nc6 {[%clk 0:02:03]} 5. Qe3 {[%clk 0:02:49]}  g6 {[%clk 0:01:59]} 6. c4 {[%clk 0:02:44]}  Bg7 {[%clk 0:01:57]} 7. Be2 {[%clk 0:02:41]}  Nf6 {[%clk 0:01:57]} 8. O-O {[%clk 0:02:40]}  O-O {[%clk 0:01:57]} 9. h3 {[%clk 0:02:40]}  a5 {[%clk 0:01:57]} 10. Nc3 {[%clk 0:02:39]}  a4 {[%clk 0:01:57]} 11. Rd1 {[%clk 0:02:37]}  h6 {[%clk 0:01:46]} 12. e5 {[%clk 0:02:28]}  Ne8 {[%clk 0:01:44]} 13. exd6 {[%clk 0:02:24]}  exd6 {[%clk 0:01:44]} 14. Qd3 {[%clk 0:02:06]}  Bf5 {[%clk 0:01:35]} 15. Qd2 {[%clk 0:02:05]}  Qa5 {[%clk 0:01:26]} 16. a3 {[%clk 0:02:01]}  Kh7 {[%clk 0:01:23]} 17. Bf1 {[%clk 0:01:46]}  Nf6 {[%clk 0:01:21]} 18. Nb5 {[%clk 0:01:25]}  Qxd2 {[%clk 0:01:20]} 19. Rxd2 {[%clk 0:01:17]}  Ne4 {[%clk 0:01:19]} 20. Rd1 {[%clk 0:01:17]}  Ne5 {[%clk 0:01:15]} 21. Nfd4 {[%clk 0:01:16]}  Nc5 {[%clk 0:01:05]} 22. Nxf5 {[%clk 0:01:12]}  gxf5 {[%clk 0:01:04]} 23. Be3 {[%clk 0:01:10]}  Nb3 {[%clk 0:01:03]} 24. Rab1 {[%clk 0:01:10]}  Ng6 {[%clk 0:00:51]} 25. Nxd6 {[%clk 0:01:07]}  f4 {[%clk 0:00:50]} 26. Bb6 {[%clk 0:01:07]}  Ne5 {[%clk 0:00:25]} 27. c5 {[%clk 0:01:05]}  Nc6 {[%clk 0:00:22]} 28. Nxb7 {[%clk 0:01:05]}  Ncd4 {[%clk 0:00:20]} 29. Bd3+ {[%clk 0:01:04]}  Kg8 {[%clk 0:00:10]} 30. Nd6 {[%clk 0:01:05]}  Rab8 {[%clk 0:00:10]} 31. Bc4 {[%clk 0:01:03]}  Nc6 {[%clk 0:00:10]} 32. Bb5 {[%clk 0:01:00]}  Ncd4 {[%clk 0:00:10]} 33. Bxa4 {[%clk 0:01:00]}  Ne2+ {[%clk 0:00:10]} 34. Kf1 {[%clk 0:01:00]}  Nbd4 {[%clk 0:00:11]} 35. Rd2 {[%clk 0:00:56]}  f3 {[%clk 0:00:03]} 36. g3 {[%clk 0:00:56]} 1-0


[Site "https://www.chess.com"]

[Event "Titled Tuesday Blitz January 10 Early 2023"]
[White "Praggnanandhaa R"]
[Black "Droin, Augustin"]
[WhiteFideId "25059530"]
[BlackFideId "45105987"]
[WhiteElo "2688"]
[BlackElo "2436"]
[Result "1-0"]
[Round "01"]
[TimeControl "180+2"]
[Date "2023.01.10"]
[WhiteClock "0:02:02"]
[BlackClock "0:01:17"]

1. d4 {[%clk 0:03:00]}  Nf6 {[%clk 0:02:51]} 2. Nf3 {[%clk 0:03:01]}  e6 {[%clk 0:02:46]} 3. c4 {[%clk 0:03:02]}  Bb4+ {[%clk 0:02:41]} 4. Bd2 {[%clk 0:03:02]}  Bxd2+ {[%clk 0:02:40]} 5. Nbxd2 {[%clk 0:03:01]}  d5 {[%clk 0:02:38]} 6. g3 {[%clk 0:03:00]}  O-O {[%clk 0:02:38]} 7. Bg2 {[%clk 0:03:01]}  b6 {[%clk 0:02:38]} 8. O-O {[%clk 0:03:01]}  Nbd7 {[%clk 0:02:38]} 9. cxd5 {[%clk 0:03:00]}  exd5 {[%clk 0:02:39]} 10. b4 {[%clk 0:02:54]}  Bb7 {[%clk 0:02:39]} 11. Rc1 {[%clk 0:02:54]}  Re8 {[%clk 0:02:38]} 12. e3 {[%clk 0:02:54]}  c6 {[%clk 0:02:33]} 13. Qb3 {[%clk 0:02:53]}  a6 {[%clk 0:02:30]} 14. Rc2 {[%clk 0:02:50]}  Rc8 {[%clk 0:02:29]} 15. Rfc1 {[%clk 0:02:50]}  Qe7 {[%clk 0:02:27]} 16. Ne1 {[%clk 0:02:48]}  h5 {[%clk 0:02:07]} 17. h3 {[%clk 0:02:45]}  Nf8 {[%clk 0:01:42]} 18. a4 {[%clk 0:02:42]}  Ne6 {[%clk 0:01:38]} 19. Nd3 {[%clk 0:02:42]}  h4 {[%clk 0:01:37]} 20. g4 {[%clk 0:02:42]}  Ng5 {[%clk 0:01:37]} 21. Ne5 {[%clk 0:02:40]}  Qd6 {[%clk 0:01:28]} 22. f4 {[%clk 0:02:27]}  Ne6 {[%clk 0:01:27]} 23. Ndf3 {[%clk 0:02:05]}  Ne4 {[%clk 0:01:27]} 24. Nxh4 {[%clk 0:02:05]}  Ba8 {[%clk 0:01:19]} 25. Nf5 {[%clk 0:02:04]}  Qf8 {[%clk 0:01:17]} 26. Nd7 {[%clk 0:02:02]} 1-0


[Site "https://www.chess.com"]

[Event "Titled Tuesday Blitz January 10 Early 2023"]
[White "Rahman, Ziaur"]
[Black "Le, Tuan Minh"]
[WhiteFideId "10200037"]
[BlackFideId "12401153"]
[WhiteElo "2464"]
[BlackElo "2542"]
[Result "1-0"]
[Round "01"]
[TimeControl "180+2"]
[Date "2023.01.10"]
[WhiteClock "0:00:13"]
[BlackClock "0:00:10"]

1. Nf3 {[%clk 0:02:59]}  d5 {[%clk 0:02:56]} 2. g3 {[%clk 0:02:57]}  Nd7 {[%clk 0:02:53]} 3. d4 {[%clk 0:02:56]}  Nb6 {[%clk 0:02:51]} 4. Nc3 {[%clk 0:02:53]}  Bf5 {[%clk 0:02:43]} 5. Bg2 {[%clk 0:02:48]}  e6 {[%clk 0:02:43]} 6. Nh4 {[%clk 0:02:47]}  Bg4 {[%clk 0:02:43]} 7. Qd3 {[%clk 0:02:32]}  Be7 {[%clk 0:02:36]} 8. h3 {[%clk 0:02:17]}  Bh5 {[%clk 0:02:36]} 9. g4 {[%clk 0:02:16]}  Bxh4 {[%clk 0:02:20]} 10. gxh5 {[%clk 0:02:16]}  h6 {[%clk 0:02:20]} 11. Be3 {[%clk 0:02:04]}  Nc4 {[%clk 0:02:07]} 12. O-O-O {[%clk 0:02:01]}  c6 {[%clk 0:01:52]} 13. Kb1 {[%clk 0:01:58]}  Ne7 {[%clk 0:01:45]} 14. Bc1 {[%clk 0:01:58]}  Bxf2 {[%clk 0:01:13]} 15. e4 {[%clk 0:01:57]}  Bh4 {[%clk 0:01:10]} 16. Rhg1 {[%clk 0:01:49]}  Nd6 {[%clk 0:01:04]} 17. Bf3 {[%clk 0:01:43]}  dxe4 {[%clk 0:01:04]} 18. Nxe4 {[%clk 0:01:39]}  Nxe4 {[%clk 0:01:04]} 19. Bxe4 {[%clk 0:01:39]}  Bf6 {[%clk 0:01:04]} 20. Bf4 {[%clk 0:01:29]}  Qb6 {[%clk 0:01:00]} 21. Bd6 {[%clk 0:01:07]}  O-O-O {[%clk 0:00:43]} 22. Bc5 {[%clk 0:01:04]}  Qc7 {[%clk 0:00:42]} 23. Bxa7 {[%clk 0:01:01]}  Nd5 {[%clk 0:00:20]} 24. Bc5 {[%clk 0:00:58]}  Rd7 {[%clk 0:00:20]} 25. Qa3 {[%clk 0:00:56]}  Rhd8 {[%clk 0:00:20]} 26. Qa8+ {[%clk 0:00:53]}  Qb8 {[%clk 0:00:20]} 27. Qa4 {[%clk 0:00:50]}  Ne3 {[%clk 0:00:17]} 28. Rd3 {[%clk 0:00:48]}  Nf5 {[%clk 0:00:12]} 29. Bxf5 {[%clk 0:00:46]}  exf5 {[%clk 0:00:13]} 30. Bb6 {[%clk 0:00:46]}  Re8 {[%clk 0:00:13]} 31. Rgd1 {[%clk 0:00:46]}  Rd5 {[%clk 0:00:13]} 32. c4 {[%clk 0:00:44]}  Rd6 {[%clk 0:00:12]} 33. d5 {[%clk 0:00:43]}  Re2 {[%clk 0:00:12]} 34. Rb3 {[%clk 0:00:41]}  f4 {[%clk 0:00:07]} 35. Bc5 {[%clk 0:00:39]}  Rd7 {[%clk 0:00:07]} 36. Ba3 {[%clk 0:00:32]}  f3 {[%clk 0:00:05]} 37. Rxf3 {[%clk 0:00:31]}  Qc7 {[%clk 0:00:02]} 38. d6 {[%clk 0:00:27]}  Qb8 {[%clk 0:00:02]} 39. c5 {[%clk 0:00:24]}  Re6 {[%clk 0:00:02]} 40. Qc2 {[%clk 0:00:21]}  Kd8 {[%clk 0:00:02]} 41. Qh7 {[%clk 0:00:21]}  b6 {[%clk 0:00:03]} 42. Rb3 {[%clk 0:00:18]}  b5 {[%clk 0:00:03]} 43. Bb4 {[%clk 0:00:18]}  Qa7 {[%clk 0:00:04]} 44. Ra3 {[%clk 0:00:18]}  Qb7 {[%clk 0:00:04]} 45. Ba5+ {[%clk 0:00:17]}  Kc8 {[%clk 0:00:05]} 46. Bb6 {[%clk 0:00:18]}  Bd8 {[%clk 0:00:05]} 47. Qg8 {[%clk 0:00:17]}  Re2 {[%clk 0:00:05]} 48. Ra7 {[%clk 0:00:16]}  Qxa7 {[%clk 0:00:05]} 49. Bxa7 {[%clk 0:00:16]}  Rxa7 {[%clk 0:00:06]} 50. Qxg7 {[%clk 0:00:15]}  Rd7 {[%clk 0:00:07]} 51. Qg4 {[%clk 0:00:15]}  Re6 {[%clk 0:00:07]} 52. a4 {[%clk 0:00:14]}  bxa4 {[%clk 0:00:07]} 53. Qxa4 {[%clk 0:00:14]}  Rb7 {[%clk 0:00:08]} 54. Qxc6+ {[%clk 0:00:14]}  Kb8 {[%clk 0:00:08]} 55. Qd5 {[%clk 0:00:14]}  Bf6 {[%clk 0:00:09]} 56. b3 {[%clk 0:00:13]}  Re2 {[%clk 0:00:09]} 57. d7 {[%clk 0:00:12]}  Bd8 {[%clk 0:00:09]} 58. Qd6+ {[%clk 0:00:11]}  Rc7 {[%clk 0:00:09]} 59. Qb6+ {[%clk 0:00:11]}  Ka8 {[%clk 0:00:10]} 60. Qa6+ {[%clk 0:00:12]}  Kb8 {[%clk 0:00:10]} 61. Qxe2 {[%clk 0:00:13]} 1-0


[Site "https://www.chess.com"]

[Event "Titled Tuesday Blitz January 10 Early 2023"]
[White "Goldin, Alexander"]
[Black "Puranik, Abhimanyu"]
[WhiteFideId "2019540"]
[BlackFideId "5061245"]
[WhiteElo "2542"]
[BlackElo "2613"]
[Result "0-1"]
[Round "01"]
[TimeControl "180+2"]
[Date "2023.01.10"]
[WhiteClock "0:01:20"]
[BlackClock "0:02:17"]

1. Nf3 {[%clk 0:02:59]}  Nf6 {[%clk 0:02:58]} 2. d4 {[%clk 0:02:58]}  g6 {[%clk 0:02:57]} 3. g3 {[%clk 0:02:58]}  b6 {[%clk 0:02:56]} 4. Bg2 {[%clk 0:02:59]}  Bb7 {[%clk 0:02:57]} 5. O-O {[%clk 0:02:59]}  d5 {[%clk 0:02:55]} 6. b3 {[%clk 0:02:51]}  Bg7 {[%clk 0:02:55]} 7. Bb2 {[%clk 0:02:51]}  O-O {[%clk 0:02:54]} 8. Nbd2 {[%clk 0:02:51]}  c5 {[%clk 0:02:53]} 9. c4 {[%clk 0:02:45]}  cxd4 {[%clk 0:02:52]} 10. Nxd4 {[%clk 0:02:28]}  e5 {[%clk 0:02:50]} 11. Nc2 {[%clk 0:02:24]}  Nc6 {[%clk 0:02:49]} 12. cxd5 {[%clk 0:02:18]}  Nxd5 {[%clk 0:02:49]} 13. Nc4 {[%clk 0:02:17]}  Nce7 {[%clk 0:02:30]} 14. Nxe5 {[%clk 0:01:55]}  Qc7 {[%clk 0:02:26]} 15. Nd3 {[%clk 0:01:22]}  Bxb2 {[%clk 0:02:25]} 16. Nxb2 {[%clk 0:01:23]}  Rfd8 {[%clk 0:02:25]} 17. Nd3 {[%clk 0:01:21]}  Rac8 {[%clk 0:02:18]} 18. Qd2 {[%clk 0:01:20]}  Qxc2 {[%clk 0:02:17]} 0-1


[Site "https://www.chess.com"]

[Event "Titled Tuesday Blitz January 10 Early 2023"]
[White "Keymer, Vincent"]
[Black "Reprintsev, Alexander"]
[WhiteFideId "12940690"]
[BlackFideId "14100541"]
[WhiteElo "2700"]
[BlackElo "2253"]
[Result "1-0"]
[Round "01"]
[TimeControl "180+2"]
[Date "2023.01.10"]
[WhiteClock "0:01:32"]
[BlackClock "0:01:52"]

1. Nf3 {[%clk 0:03:00]}  d5 {[%clk 0:02:56]} 2. e3 {[%clk 0:02:58]}  Nf6 {[%clk 0:02:50]} 3. c4 {[%clk 0:02:58]}  c6 {[%clk 0:02:47]} 4. Nc3 {[%clk 0:02:59]}  g6 {[%clk 0:02:43]} 5. d4 {[%clk 0:02:58]}  Bg7 {[%clk 0:02:42]} 6. Be2 {[%clk 0:02:59]}  O-O {[%clk 0:02:42]} 7. O-O {[%clk 0:02:59]}  Bg4 {[%clk 0:02:37]} 8. h3 {[%clk 0:02:59]}  Bxf3 {[%clk 0:02:37]} 9. Bxf3 {[%clk 0:03:00]}  e6 {[%clk 0:02:37]} 10. b3 {[%clk 0:03:00]}  Re8 {[%clk 0:02:35]} 11. Bb2 {[%clk 0:03:00]}  Nbd7 {[%clk 0:02:35]} 12. Qc2 {[%clk 0:03:01]}  Qa5 {[%clk 0:02:33]} 13. g3 {[%clk 0:02:57]}  a6 {[%clk 0:02:29]} 14. Bg2 {[%clk 0:02:56]}  Rac8 {[%clk 0:02:28]} 15. Rad1 {[%clk 0:02:45]}  Bf8 {[%clk 0:02:28]} 16. a3 {[%clk 0:02:43]}  Bg7 {[%clk 0:02:27]} 17. Rfe1 {[%clk 0:02:35]}  b5 {[%clk 0:02:23]} 18. b4 {[%clk 0:02:15]}  Qd8 {[%clk 0:02:18]} 19. c5 {[%clk 0:02:15]}  e5 {[%clk 0:02:17]} 20. dxe5 {[%clk 0:02:15]}  Nxe5 {[%clk 0:02:16]} 21. e4 {[%clk 0:02:09]}  Nc4 {[%clk 0:02:16]} 22. exd5 {[%clk 0:02:00]}  Rxe1+ {[%clk 0:02:15]} 23. Rxe1 {[%clk 0:02:00]}  Nxb2 {[%clk 0:02:14]} 24. Qxb2 {[%clk 0:02:00]}  Nxd5 {[%clk 0:02:14]} 25. Bxd5 {[%clk 0:02:00]}  cxd5 {[%clk 0:02:15]} 26. Qd2 {[%clk 0:01:57]}  d4 {[%clk 0:02:13]} 27. Ne4 {[%clk 0:01:55]}  Qd5 {[%clk 0:02:11]} 28. Qd3 {[%clk 0:01:42]}  h6 {[%clk 0:02:08]} 29. Nd6 {[%clk 0:01:37]}  Ra8 {[%clk 0:02:08]} 30. Re7 {[%clk 0:01:34]}  Bf8 {[%clk 0:01:54]} 31. Rxf7 {[%clk 0:01:32]}  Bxd6 {[%clk 0:01:52]} 32. Qxg6+ {[%clk 0:01:32]} 1-0


[Site "https://www.chess.com"]

[Event "Titled Tuesday Blitz January 10 Early 2023"]
[White "Dvirnyy, Danyyil"]
[Black "Mortazavi, Ali"]
[WhiteFideId "817570"]
[BlackFideId "401323"]
[WhiteElo "2541"]
[BlackElo "2333"]
[Result "1-0"]
[Round "01"]
[TimeControl "180+2"]
[Date "2023.01.10"]
[WhiteClock "0:00:38"]
[BlackClock "0:00:21"]

1. e4 {[%clk 0:02:58]}  c6 {[%clk 0:03:00]} 2. d4 {[%clk 0:02:57]}  d5 {[%clk 0:03:00]} 3. exd5 {[%clk 0:02:57]}  cxd5 {[%clk 0:03:00]} 4. Bd3 {[%clk 0:02:58]}  Nc6 {[%clk 0:03:00]} 5. c3 {[%clk 0:02:57]}  Qc7 {[%clk 0:03:01]} 6. Nf3 {[%clk 0:02:53]}  Bg4 {[%clk 0:02:59]} 7. h3 {[%clk 0:02:54]}  Bh5 {[%clk 0:02:59]} 8. O-O {[%clk 0:02:53]}  e6 {[%clk 0:02:59]} 9. Re1 {[%clk 0:02:53]}  Bd6 {[%clk 0:02:58]} 10. a4 {[%clk 0:02:53]}  Nge7 {[%clk 0:02:58]} 11. Na3 {[%clk 0:02:53]}  a6 {[%clk 0:02:57]} 12. Nc2 {[%clk 0:02:53]}  O-O {[%clk 0:02:49]} 13. Ne3 {[%clk 0:02:52]}  Rac8 {[%clk 0:02:40]} 14. Ng4 {[%clk 0:02:44]}  Rfe8 {[%clk 0:02:27]} 15. Bg5 {[%clk 0:02:42]}  Bf4 {[%clk 0:02:20]} 16. Bxe7 {[%clk 0:02:28]}  Qxe7 {[%clk 0:02:12]} 17. g3 {[%clk 0:02:26]}  Bb8 {[%clk 0:02:09]} 18. Qd2 {[%clk 0:02:20]}  f6 {[%clk 0:01:49]} 19. Nh4 {[%clk 0:02:06]}  Qf7 {[%clk 0:01:40]} 20. Ng2 {[%clk 0:01:50]}  e5 {[%clk 0:01:35]} 21. dxe5 {[%clk 0:01:46]}  fxe5 {[%clk 0:01:35]} 22. Qg5 {[%clk 0:01:45]}  Kh8 {[%clk 0:01:15]} 23. Rad1 {[%clk 0:01:44]}  Rf8 {[%clk 0:01:12]} 24. Rf1 {[%clk 0:01:25]}  e4 {[%clk 0:01:10]} 25. Bc2 {[%clk 0:01:23]}  Ne5 {[%clk 0:01:09]} 26. Nxe5 {[%clk 0:01:19]}  Bxe5 {[%clk 0:01:09]} 27. Qxe5 {[%clk 0:01:18]}  Bxd1 {[%clk 0:01:09]} 28. Bxd1 {[%clk 0:01:19]}  Rce8 {[%clk 0:01:05]} 29. Qd4 {[%clk 0:01:19]}  Re6 {[%clk 0:01:01]} 30. Qxd5 {[%clk 0:01:17]}  Qe7 {[%clk 0:00:59]} 31. Ne3 {[%clk 0:01:11]}  Rg6 {[%clk 0:00:58]} 32. Bb3 {[%clk 0:01:06]}  h6 {[%clk 0:00:54]} 33. Qh5 {[%clk 0:00:51]}  Rg5 {[%clk 0:00:53]} 34. Qh4 {[%clk 0:00:48]}  Qe5 {[%clk 0:00:39]} 35. Bc2 {[%clk 0:00:45]}  Re8 {[%clk 0:00:29]} 36. Rd1 {[%clk 0:00:45]}  b5 {[%clk 0:00:26]} 37. Rd5 {[%clk 0:00:42]}  Qf6 {[%clk 0:00:21]} 38. Rxg5 {[%clk 0:00:41]}  Qxg5 {[%clk 0:00:22]} 39. Qxg5 {[%clk 0:00:41]}  hxg5 {[%clk 0:00:23]} 40. axb5 {[%clk 0:00:41]}  axb5 {[%clk 0:00:24]} 41. Nd5 {[%clk 0:00:40]}  Kg8 {[%clk 0:00:21]} 42. Kf1 {[%clk 0:00:38]}  Kf7 {[%clk 0:00:21]} 43. Ke2 {[%clk 0:00:38]}  Ke6 {[%clk 0:00:20]} 44. Nc7+ {[%clk 0:00:38]}  Ke5 {[%clk 0:00:21]} 45. Nxe8 {[%clk 0:00:38]} 1-0


[Site "https://www.chess.com"]

[Event "Titled Tuesday Blitz January 10 Early 2023"]
[White "Tari, Aryan"]
[Black "Ronka, Erik"]
[WhiteFideId "1510045"]
[BlackFideId "505080"]
[WhiteElo "2642"]
[BlackElo "2276"]
[Result "1/2-1/2"]
[Round "01"]
[TimeControl "180+2"]
[Date "2023.01.10"]
[WhiteClock "0:00:28"]
[BlackClock "0:00:08"]

1. e4 {[%clk 0:02:59]}  c5 {[%clk 0:02:58]} 2. Nc3 {[%clk 0:02:58]}  e6 {[%clk 0:02:57]} 3. d4 {[%clk 0:02:57]}  cxd4 {[%clk 0:02:56]} 4. Qxd4 {[%clk 0:02:58]}  d6 {[%clk 0:02:47]} 5. Nf3 {[%clk 0:02:51]}  a6 {[%clk 0:02:46]} 6. Bg5 {[%clk 0:02:51]}  Qc7 {[%clk 0:02:45]} 7. O-O-O {[%clk 0:02:51]}  Nc6 {[%clk 0:02:40]} 8. Qd2 {[%clk 0:02:46]}  b5 {[%clk 0:02:24]} 9. Bf4 {[%clk 0:02:43]}  b4 {[%clk 0:02:25]} 10. Na4 {[%clk 0:02:42]}  e5 {[%clk 0:02:21]} 11. Be3 {[%clk 0:02:41]}  Rb8 {[%clk 0:02:03]} 12. Bc4 {[%clk 0:02:38]}  Na5 {[%clk 0:01:49]} 13. Bb3 {[%clk 0:02:16]}  Nf6 {[%clk 0:01:42]} 14. Qd3 {[%clk 0:02:01]}  Be7 {[%clk 0:01:32]} 15. h3 {[%clk 0:01:56]}  O-O {[%clk 0:01:32]} 16. Kb1 {[%clk 0:01:54]}  Bb7 {[%clk 0:01:29]} 17. Nd2 {[%clk 0:01:52]}  Bc6 {[%clk 0:00:53]} 18. Nc4 {[%clk 0:01:43]}  Bxa4 {[%clk 0:00:48]} 19. Bxa4 {[%clk 0:01:15]}  Nxc4 {[%clk 0:00:44]} 20. Bc1 {[%clk 0:01:15]}  Nb6 {[%clk 0:00:43]} 21. Bb3 {[%clk 0:01:14]}  a5 {[%clk 0:00:43]} 22. g4 {[%clk 0:00:59]}  a4 {[%clk 0:00:43]} 23. Bd5 {[%clk 0:01:00]}  Nfxd5 {[%clk 0:00:40]} 24. exd5 {[%clk 0:01:01]}  Rfc8 {[%clk 0:00:34]} 25. Rhe1 {[%clk 0:00:58]}  Qc4 {[%clk 0:00:33]} 26. Qd2 {[%clk 0:00:49]}  b3 {[%clk 0:00:33]} 27. cxb3 {[%clk 0:00:45]}  axb3 {[%clk 0:00:33]} 28. axb3 {[%clk 0:00:46]}  Qxb3 {[%clk 0:00:33]} 29. Re3 {[%clk 0:00:46]}  Qb5 {[%clk 0:00:33]} 30. Qe2 {[%clk 0:00:41]}  Qxe2 {[%clk 0:00:30]} 31. Rxe2 {[%clk 0:00:42]}  Nc4 {[%clk 0:00:28]} 32. Rd3 {[%clk 0:00:40]}  h6 {[%clk 0:00:24]} 33. Rc2 {[%clk 0:00:39]}  Nb6 {[%clk 0:00:23]} 34. Rc6 {[%clk 0:00:38]}  Rxc6 {[%clk 0:00:17]} 35. dxc6 {[%clk 0:00:39]}  Rc8 {[%clk 0:00:17]} 36. Rc3 {[%clk 0:00:39]}  Nd5 {[%clk 0:00:17]} 37. Rc4 {[%clk 0:00:39]}  Nc7 {[%clk 0:00:17]} 38. Be3 {[%clk 0:00:38]}  d5 {[%clk 0:00:18]} 39. Rc2 {[%clk 0:00:38]}  d4 {[%clk 0:00:18]} 40. Bd2 {[%clk 0:00:38]}  Nd5 {[%clk 0:00:19]} 41. Ba5 {[%clk 0:00:38]}  Bd6 {[%clk 0:00:18]} 42. Rc4 {[%clk 0:00:36]}  Kf8 {[%clk 0:00:17]} 43. Kc2 {[%clk 0:00:36]}  Ke7 {[%clk 0:00:18]} 44. Kd3 {[%clk 0:00:37]}  Bc7 {[%clk 0:00:18]} 45. Bd2 {[%clk 0:00:32]}  Kd6 {[%clk 0:00:18]} 46. b4 {[%clk 0:00:33]}  Nb6 {[%clk 0:00:17]} 47. Rc1 {[%clk 0:00:32]}  Nd5 {[%clk 0:00:17]} 48. b5 {[%clk 0:00:33]}  g6 {[%clk 0:00:17]} 49. Kc4 {[%clk 0:00:32]}  f5 {[%clk 0:00:17]} 50. gxf5 {[%clk 0:00:32]}  gxf5 {[%clk 0:00:17]} 51. Rg1 {[%clk 0:00:32]}  Nb6+ {[%clk 0:00:16]} 52. Kb3 {[%clk 0:00:31]}  Kc5 {[%clk 0:00:14]} 53. Rc1+ {[%clk 0:00:29]}  Kxb5 {[%clk 0:00:14]} 54. Bb4 {[%clk 0:00:30]}  Na4 {[%clk 0:00:10]} 55. Ra1 {[%clk 0:00:29]}  Nb6 {[%clk 0:00:09]} 56. Rc1 {[%clk 0:00:28]}  Na8 {[%clk 0:00:10]} 57. Rc5+ {[%clk 0:00:28]}  Kb6 {[%clk 0:00:10]} 58. Kc4 {[%clk 0:00:29]}  Ka7 {[%clk 0:00:10]} 59. Kd5 {[%clk 0:00:26]}  Nb6+ {[%clk 0:00:10]} 60. Ke6 {[%clk 0:00:27]}  Na4 {[%clk 0:00:10]} 61. Rc1 {[%clk 0:00:27]}  Bb6 {[%clk 0:00:10]} 62. Ra1 {[%clk 0:00:25]}  Rxc6+ {[%clk 0:00:11]} 63. Kd5 {[%clk 0:00:26]}  Rc2 {[%clk 0:00:10]} 64. Rxa4+ {[%clk 0:00:26]}  Kb7 {[%clk 0:00:11]} 65. Kxe5 {[%clk 0:00:25]}  Rxf2 {[%clk 0:00:11]} 66. Bf8 {[%clk 0:00:25]}  d3 {[%clk 0:00:11]} 67. Bxh6 {[%clk 0:00:25]}  d2 {[%clk 0:00:11]} 68. Ra1 {[%clk 0:00:25]}  Rh2 {[%clk 0:00:08]} 69. Rd1 {[%clk 0:00:25]}  Ba5 {[%clk 0:00:08]} 70. Kxf5 {[%clk 0:00:25]}  Rxh3 {[%clk 0:00:08]} 71. Bf4 {[%clk 0:00:25]}  Rd3 {[%clk 0:00:08]} 72. Ke4 {[%clk 0:00:25]}  Rd7 {[%clk 0:00:08]} 73. Ke3 {[%clk 0:00:25]}  Kc6 {[%clk 0:00:08]} 74. Ke2 {[%clk 0:00:26]}  Kb5 {[%clk 0:00:08]} 75. Bxd2 {[%clk 0:00:26]}  Bxd2 {[%clk 0:00:08]} 76. Rxd2 {[%clk 0:00:27]}  Rxd2+ {[%clk 0:00:08]} 77. Kxd2 {[%clk 0:00:28]} 1/2-1/2


[Site "https://www.chess.com"]

[Event "Titled Tuesday Blitz January 10 Early 2023"]
[White "Nguyen Hong Nhung"]
[Black "Dardha, Daniel"]
[WhiteFideId "12412201"]
[BlackFideId "240990"]
[WhiteElo "2003"]
[BlackElo "2631"]
[Result "0-1"]
[Round "01"]
[TimeControl "180+2"]
[Date "2023.01.10"]
[WhiteClock "0:00:29"]
[BlackClock "0:00:20"]

1. e4 {[%clk 0:03:00]}  e5 {[%clk 0:02:58]} 2. Nf3 {[%clk 0:03:00]}  Nc6 {[%clk 0:02:57]} 3. d4 {[%clk 0:03:01]}  exd4 {[%clk 0:02:57]} 4. Nxd4 {[%clk 0:03:02]}  Nf6 {[%clk 0:02:57]} 5. Nc3 {[%clk 0:03:02]}  Bb4 {[%clk 0:02:56]} 6. Nxc6 {[%clk 0:03:02]}  bxc6 {[%clk 0:02:56]} 7. Bd3 {[%clk 0:03:02]}  d5 {[%clk 0:02:57]} 8. exd5 {[%clk 0:03:03]}  O-O {[%clk 0:02:57]} 9. O-O {[%clk 0:03:04]}  cxd5 {[%clk 0:02:57]} 10. Bg5 {[%clk 0:03:04]}  c6 {[%clk 0:02:54]} 11. Qf3 {[%clk 0:03:04]}  h6 {[%clk 0:02:51]} 12. Bh4 {[%clk 0:03:03]}  g5 {[%clk 0:02:41]} 13. Bg3 {[%clk 0:03:03]}  Bg4 {[%clk 0:02:40]} 14. Bc7 {[%clk 0:02:47]}  Bxf3 {[%clk 0:02:07]} 15. Bxd8 {[%clk 0:02:47]}  Rfxd8 {[%clk 0:02:04]} 16. gxf3 {[%clk 0:02:47]}  Bxc3 {[%clk 0:02:01]} 17. bxc3 {[%clk 0:02:47]}  Rab8 {[%clk 0:02:00]} 18. Rab1 {[%clk 0:02:40]}  Nh5 {[%clk 0:01:59]} 19. Rfd1 {[%clk 0:02:36]}  Nf4 {[%clk 0:01:59]} 20. Kf1 {[%clk 0:02:32]}  Rb6 {[%clk 0:01:57]} 21. Rb3 {[%clk 0:02:27]}  Kg7 {[%clk 0:01:54]} 22. Re1 {[%clk 0:02:24]}  Kf6 {[%clk 0:01:52]} 23. Reb1 {[%clk 0:02:21]}  Rdb8 {[%clk 0:01:52]} 24. Ke1 {[%clk 0:02:19]}  Ke5 {[%clk 0:01:41]} 25. Kd2 {[%clk 0:02:19]}  Ne6 {[%clk 0:01:40]} 26. c4 {[%clk 0:02:10]}  Nd4 {[%clk 0:01:24]} 27. Rxb6 {[%clk 0:02:06]}  axb6 {[%clk 0:01:23]} 28. cxd5 {[%clk 0:02:02]}  Kxd5 {[%clk 0:01:15]} 29. Be4+ {[%clk 0:02:00]}  Kd6 {[%clk 0:01:12]} 30. Ke3 {[%clk 0:01:56]}  Ne6 {[%clk 0:01:08]} 31. Rd1+ {[%clk 0:01:52]}  Kc7 {[%clk 0:01:08]} 32. Rd3 {[%clk 0:01:49]}  Re8 {[%clk 0:01:00]} 33. Kd2 {[%clk 0:01:43]}  Ra8 {[%clk 0:00:53]} 34. Rc3 {[%clk 0:01:40]}  Nc5 {[%clk 0:00:53]} 35. a3 {[%clk 0:01:40]}  Re8 {[%clk 0:00:49]} 36. Rc4 {[%clk 0:01:29]}  Rd8+ {[%clk 0:00:47]} 37. Ke3 {[%clk 0:01:28]}  Rd1 {[%clk 0:00:46]} 38. Ke2 {[%clk 0:01:23]}  Ra1 {[%clk 0:00:42]} 39. Rc3 {[%clk 0:01:24]}  Rh1 {[%clk 0:00:42]} 40. Bf5 {[%clk 0:01:21]}  Rxh2 {[%clk 0:00:38]} 41. Rc4 {[%clk 0:01:21]}  Rh4 {[%clk 0:00:35]} 42. Rxh4 {[%clk 0:01:11]}  gxh4 {[%clk 0:00:36]} 43. Kf1 {[%clk 0:01:11]}  Ne6 {[%clk 0:00:27]} 44. Bxe6 {[%clk 0:00:44]}  fxe6 {[%clk 0:00:28]} 45. Kg2 {[%clk 0:00:43]}  Kd6 {[%clk 0:00:29]} 46. f4 {[%clk 0:00:42]}  Kd5 {[%clk 0:00:27]} 47. Kf3 {[%clk 0:00:39]}  h5 {[%clk 0:00:19]} 48. Ke3 {[%clk 0:00:33]}  h3 {[%clk 0:00:19]} 49. Kf3 {[%clk 0:00:31]}  h4 {[%clk 0:00:20]} 50. a4 {[%clk 0:00:29]}  Kd4 {[%clk 0:00:20]} 0-1


[Site "https://www.chess.com"]